bitfinex-derivatives/quotes_ETHF0:USTF0_20240920
["timestamp","ask_amount","ask_price","bid_price","bid_amount"]
[1726857002495,3.02096577,2540.2,2540.1,7.40046]
[1726857002805,0.4451,2540.2,2540.1,7.40046]
[1726857003501,3.99685664,2540.6,2540.3,0.39363]
[1726857003502,2.57586577,2540.4,2540.3,0.39363]
[1726857003693,3.03066577,2540.5,2540.4,0.39361]
[1726857003892,0.4688,2540.6,2540.5,0.3936]
[1726857004106,0.4688,2540.6,2540.5,3.4636]
[1726857004294,0.4688,2540.6,2540.5,7.3996]
[1726857005090,0.4688,2540.6,2540.5,3.921]
[1726857005289,3.04466577,2540.6,2540.3,3.07]
[1726857005499,0.4548,2540.5,2540.4,4.3146]
[1726857005799,0.4548,2540.5,2540.4,4.31461]
[1726857006687,0.4548,2540.5,2540.4,0.39361]
[1726857006888,0.4548,2540.5,2540.4,4.31461]
[1726857007494,0.4688,2540.6,2540.5,0.3936]
[1726857007699,0.4688,2540.6,2540.5,3.4636]
[1726857009600,0.4688,2540.6,2540.5,7.3846]
[1726857010302,0.4529,2540.8,2540.7,0.39357]
[1726857010492,0.4529,2540.8,2540.7,3.46357]
[1726857011202,3.01196577,2541.0,2540.9,0.39354]
[1726857011505,0.4361,2541.0,2540.9,0.39354]
[1726857013189,3.01196577,2541.0,2540.9,0.39354]
[1726857013996,0.4361,2541.0,2540.9,0.39354]
[1726857014597,3.01196577,2541.0,2540.9,0.39354]
[1726857015608,0.4361,2541.0,2540.9,0.39354]
[1726857015803,2.57586577,2541.1,2541.0,0.39352]
[1726857016006,2.57586577,2541.3,2541.2,0.98373]
[1726857016205,2.57586577,2541.5,2541.3,0.98369]
[1726857016405,2.57586577,2541.5,2541.4,3.46346]
[1726857016712,3.93416577,2541.6,2541.5,0.39344]
[1726857017098,1.3583,2541.6,2541.4,0.39345]
[1726857017298,1.3583,2541.6,2541.5,0.39344]
[1726857017705,5.2927,2541.6,2541.5,0.39344]
[1726857017913,5.2927,2541.6,2541.3,3.07]
[1726857018112,1.3583,2541.6,2541.5,0.39344]
[1726857018302,5.2927,2541.6,2541.4,0.39346]
[1726857018502,1.75174,2541.6,2541.5,0.39344]
[1726857018800,1.3583,2541.6,2541.5,0.39344]
[1726857018999,5.2927,2541.6,2541.5,0.39344]
[1726857019201,5.68613,2541.6,2541.5,0.39344]
[1726857019395,5.2927,2541.6,2541.5,0.39344]
[1726857019606,1.3583,2541.6,2541.5,0.39344]
[1726857020009,1.75173,2541.6,2541.5,0.39344]
[1726857020208,1.3583,2541.6,2541.5,0.39344]
[1726857021306,1.75173,2541.6,2541.5,0.39344]
[1726857022514,0.39348,2541.3,2541.2,0.39348]
[1726857022705,6.17608581,2541.3,2541.2,0.39348]
[1726857023011,6.17608581,2541.3,2541.2,0.39349]
[1726857023404,0.3935,2541.2,2541.1,0.3935]
[1726857023603,3.00967052,2541.2,2541.1,0.3935]
[1726857023802,3.40316052,2541.2,2541.1,0.3935]
[1726857024516,3.00967052,2541.2,2541.1,3.4635]
[1726857024713,0.4348,2541.2,2541.1,1.37727]
[1726857025110,2.49469453,2541.2,2541.1,1.37727]
[1726857025702,2.49468986,2541.2,2541.1,1.37727]
[1726857025908,0.4348,2541.2,2541.1,1.37727]
[1726857026212,2.49476335,2541.2,2541.1,1.37727]
[1726857026407,2.49476335,2541.2,2541.1,0.3935]
[1726857026602,0.4348,2541.2,2541.1,0.3935]
[1726857027514,0.82829,2541.2,2541.1,0.3935]
[1726857027707,3.40316052,2541.2,2541.1,0.39351]
[1726857027905,0.39352,2541.1,2540.8,3.2078]
[1726857028109,6.03842052,2540.9,2540.8,0.39354]
[1726857028412,2.96842052,2540.9,2540.8,0.39354]
[1726857029003,2.57487052,2540.9,2540.8,0.39354]
[1726857029223,3.2078,2541.0,2540.9,0.39354]
[1726857029224,2.57487052,2541.0,2540.9,0.39354]
[1726857029517,2.57487052,2541.2,2541.0,2.36114]
[1726857029713,2.57487052,2541.3,2541.2,1.37722]
[1726857030214,0.8956,2541.4,2541.3,0.39347]
[1726857030513,1.28906,2541.4,2541.3,0.39347]
[1726857030716,8.43206,2541.4,2541.3,0.39347]
[1726857030914,12.09227,2541.4,2541.1,3.916]
[1726857031115,0.39349,2541.3,2541.2,0.39348]
[1726857033417,4.1034,2541.4,2541.3,0.39347]
[1726857033619,4.49686,2541.4,2541.3,0.39347]
[1726857034010,0.39349,2541.3,2541.2,0.39348]
[1726857035319,7.20035664,2541.4,2540.9,3.2078]
[1726857035524,2.57598536,2541.0,2540.7,4.131]
[1726857035818,2.96953536,2540.8,2540.7,4.52457]
[1726857036120,0.39355,2540.8,2540.7,4.52457]
[1726857036423,1.75554,2540.9,2540.8,0.39355]
[1726857036819,0.39355,2540.8,2540.7,4.52456]
[1726857037119,2.57618379,2540.8,2540.7,4.52456]
[1726857037318,2.57618379,2540.8,2540.7,7.59456]
[1726857037620,2.06090126,2540.8,2540.7,7.59456]
[1726857038611,2.06090126,2540.8,2540.7,11.51056]
[1726857039214,2.45445126,2540.8,2540.7,11.51056]
[1726857039414,2.45445126,2540.8,2540.7,8.44056]
[1726857039614,2.06090126,2540.8,2540.7,8.44056]
[1726857040018,2.45445126,2540.8,2540.7,4.30956]
[1726857040218,2.06090126,2540.8,2540.7,4.30956]
[1726857040419,2.45445126,2540.8,2540.7,4.30956]
[1726857042117,2.06090126,2540.8,2540.7,4.30956]
[1726857043424,2.45445126,2540.8,2540.7,4.30956]
[1726857044412,2.45445126,2540.8,2540.5,3.2078]
[1726857044413,2.06090126,2540.8,2540.5,3.2078]
[1726857044613,2.06090126,2540.8,2540.1,4.131]
[1726857044614,0.39365,2540.3,2540.1,4.131]
[1726857044821,2.06090126,2540.4,2540.2,3.07]
[1726857045124,4.27847379,2540.6,2540.5,0.3936]
[1726857045328,1.70229,2540.6,2540.5,0.3936]
[1726857048129,0.39361,2540.5,2540.4,0.3936]
[1726857048320,2.45464033,2540.5,2540.4,0.3936]
[1726857048824,0.39366,2540.2,2540.1,0.39364]
[1726857049015,1.54583553,2540.2,2540.1,0.39364]
[1726857049228,1.93948553,2540.2,2540.1,0.39364]
[1726857049427,3.26308553,2540.2,2540.1,0.39364]
[1726857049624,2.86943553,2540.2,2540.1,0.39364]
[1726857050321,1.3236,2540.2,2540.1,0.39364]
[1726857050526,2.8692068,2540.2,2540.1,0.39364]
[1726857051829,3.2628568,2540.2,2540.1,0.39364]
[1726857052029,2.8692068,2540.2,2540.1,0.39364]
[1726857052426,2.86886756,2540.2,2540.1,0.39364]
[1726857053524,5.2604,2540.2,2539.6,3.2078]
[1726857053729,1.93886544,2539.8,2539.6,3.2078]
[1726857053931,1.54514544,2539.7,2539.6,3.60153]
[1726857054724,1.93885544,2539.8,2539.7,0.39372]
[1726857055132,1.54514544,2539.8,2539.7,0.39372]
[1726857055432,1.93885544,2539.8,2539.7,0.39372]
[1726857055622,1.54514544,2539.8,2539.7,0.39372]
[1726857056026,1.93885544,2539.8,2539.7,0.39372]
[1726857056425,0.39371,2539.8,2539.7,0.39372]
[1726857057834,4.33131,2539.8,2539.7,0.39372]
[1726857058231,5.87645544,2539.8,2539.7,0.39372]
[1726857058538,4.33131,2539.8,2539.7,0.39372]
[1726857058727,0.39371,2539.8,2539.7,0.39372]
[1726857058926,4.33131,2539.8,2539.7,0.39372]
[1726857059929,1.54514544,2539.9,2539.8,0.39371]
[1726857060129,1.54514544,2539.9,2539.8,4.44799]
[1726857060327,1.54514544,2540.0,2539.9,0.39369]
[1726857060525,1.93881544,2540.1,2540.0,0.39368]
[1726857060727,1.93633559,2540.1,2540.0,0.39368]
[1726857060925,1.54266559,2540.2,2540.1,0.39366]
[1726857061125,1.54266559,2540.3,2540.2,0.39365]
[1726857062040,4.75046559,2540.4,2540.3,0.39363]
[1726857062337,3.60143,2540.4,2540.3,0.39363]
[1726857062528,5.14391526,2540.4,2540.3,0.39363]
[1726857062728,5.14391526,2540.4,2540.2,0.39363]
[1726857063236,5.14391526,2540.4,2540.3,0.39363]
[1726857063536,5.14391526,2540.4,2540.2,0.39363]
[1726857063737,1.93611526,2540.3,2540.2,0.39363]
[1726857064435,0.39365,2540.2,2540.0,0.39367]
[1726857064639,0.39365,2540.2,2539.9,7.1188]
[1726857064640,1.96478526,2540.3,2540.1,0.39365]
[1726857064939,1.96478526,2540.3,2540.2,0.39365]
[1726857066237,2.35841526,2540.3,2540.2,0.39365]
[1726857066439,1.96478526,2540.3,2540.2,0.39365]
[1726857066934,2.87704404,2540.3,2540.2,0.39365]
[1726857067239,2.48341404,2540.3,2540.2,0.39365]
[1726857067538,2.87704404,2540.3,2540.2,0.39365]
[1726857067734,2.48341404,2540.3,2540.2,0.39365]
[1726857069035,0.4223,2540.3,2540.2,0.39365]
[1726857069332,0.81593,2540.3,2540.2,0.39365]
[1726857069533,0.98422,2540.0,2539.3,3.07]
[1726857069734,0.98422,2540.0,2539.5,0.39375]
[1726857069735,0.39375,2539.6,2539.5,0.39375]
[1726857070037,2.05790046,2539.7,2539.5,3.07]
[1726857070335,2.92570046,2539.8,2539.7,0.39372]
[1726857070537,3.31941046,2539.8,2539.7,0.39372]
[1726857070740,2.05790046,2539.9,2539.8,0.39371]
[1726857070934,5.78017557,2540.0,2539.9,0.39369]
[1726857070935,5.26570046,2540.0,2539.9,0.39369]
[1726857073730,2.05790046,2540.0,2539.9,0.39369]
[1726857074340,0.81967,2540.1,2540.0,0.39368]
[1726857074341,2.48390046,2540.1,2540.0,0.39368]
[1726857074834,2.36276226,2540.1,2540.0,0.39368]
[1726857075142,0.426,2540.1,2540.0,0.39368]
[1726857075335,0.81966,2540.1,2540.0,0.39368]
[1726857075729,0.426,2540.1,2540.0,0.39368]
[1726857076344,0.81966,2540.1,2540.0,0.39368]
[1726857077137,2.36276226,2540.1,2540.0,0.39368]
[1726857077843,0.81966,2540.1,2540.0,0.39368]
[1726857078143,1.93676226,2540.1,2540.0,4.33048]
[1726857078334,1.54310226,2540.3,2540.2,0.39365]
[1726857078539,0.8768,2540.4,2540.3,0.39363]
[1726857078540,2.41990226,2540.4,2540.3,0.39363]
[1726857079136,2.08998829,2540.8,2540.2,3.07]
[1726857079344,2.08998829,2540.8,2540.5,0.39359]
[1726857079345,0.3936,2540.6,2540.5,0.39359]
[1726857079544,3.07389829,2540.8,2540.6,0.39358]
[1726857079545,0.39358,2540.7,2540.6,0.39358]
[1726857080044,2.08998829,2540.8,2540.7,0.39357]
[1726857080045,0.39356,2540.8,2540.7,0.39357]
[1726857080249,0.39355,2540.9,2540.8,0.39354]
[1726857080636,0.39353,2541.0,2540.9,0.39352]
[1726857082337,1.69183,2541.0,2540.9,0.39352]
[1726857084043,1.2983,2541.0,2540.9,0.39352]
[1726857084245,1.64229,2541.3,2540.9,7.26163]
[1726857084540,0.8252,2541.3,2541.2,3.46349]
[1726857085049,0.8252,2541.3,2541.2,0.39349]
[1726857085249,0.4116,2541.3,2541.2,0.39349]
[1726857088452,0.80507,2541.3,2541.2,0.39349]
[1726857089146,0.4116,2541.3,2541.2,0.39349]
[1726857089940,0.80507,2541.3,2541.2,0.39349]
[1726857091342,0.4116,2541.3,2541.2,0.39349]
[1726857091551,0.80507,2541.3,2541.2,0.39349]
[1726857094159,0.4116,2541.3,2541.2,0.39349]
[1726857094661,0.4136,2541.5,2541.4,0.39346]
[1726857094953,0.80704,2541.5,2541.4,0.39346]
[1726857095350,0.4136,2541.5,2541.4,0.39346]
[1726857095551,0.80704,2541.5,2541.4,0.39346]
[1726857099164,0.80313,2541.7,2541.6,0.39343]
[1726857099454,1.2752,2541.7,2541.6,0.39343]
[1726857099651,1.66861,2541.7,2541.6,0.39343]
[1726857101260,0.39343,2541.6,2541.5,0.84433]
[1726857101860,0.39343,2541.6,2541.5,0.39343]
[1726857102948,0.39343,2541.6,2541.5,4.29443]
[1726857103149,1.37701,2541.6,2541.5,3.901]
[1726857103351,2.95915003,2541.6,2541.5,4.29444]
[1726857103551,0.39343,2541.6,2541.5,4.29444]
[1726857105154,4.00288062,2541.6,2541.5,4.29444]
[1726857105857,0.39343,2541.6,2541.5,4.29444]
[1726857106052,4.88465062,2541.7,2541.5,4.29444]
[1726857106053,3.60945062,2541.7,2541.6,0.39343]
[1726857106551,3.60945062,2541.7,2541.6,0.82663]
[1726857107154,4.00286062,2541.7,2541.6,0.82663]
[1726857107462,3.60945062,2541.7,2541.6,0.82663]
[1726857108761,3.60945062,2541.7,2541.6,1.81021]
[1726857109761,3.60945062,2541.7,2541.6,0.82663]
[1726857109956,3.60945062,2541.7,2541.6,1.81021]
[1726857110151,3.60945062,2541.7,2541.6,0.82663]
[1726857110558,3.60945062,2541.7,2541.6,1.81021]
[1726857112060,2.57331526,2541.7,2541.6,1.81021]
[1726857114064,2.57331526,2541.7,2541.6,6.72819]
[1726857114277,5.78111526,2541.8,2541.7,0.39341]
[1726857115461,5.78111526,2541.8,2541.3,0.98369]
[1726857115662,2.05870716,2541.5,2541.4,4.28446]
[1726857116365,2.05870716,2541.5,2541.4,5.26812]
[1726857116769,2.05870716,2541.5,2541.4,4.28446]
[1726857117468,2.05870716,2541.5,2541.4,5.26812]
[1726857119970,2.05870716,2541.5,2541.4,4.28446]
[1726857120166,0.39346,2541.5,2541.4,0.39345]
[1726857120366,0.39346,2541.5,2541.4,4.28445]
[1726857120677,0.39346,2541.4,2541.3,0.39346]
[1726857120969,0.39346,2541.4,2540.5,4.51]
[1726857120970,0.98369,2541.3,2540.5,4.51]
[1726857121271,2.05932848,2540.7,2540.6,5.26855]
[1726857121575,2.05932848,2540.7,2540.6,6.25252]
[1726857121870,2.5741606,2540.8,2540.6,6.25252]
[1726857121871,2.5741606,2540.8,2540.7,0.39357]
[1726857122270,0.39355,2540.8,2540.7,0.39357]
[1726857122871,1.3175,2540.9,2540.5,3.635]
[1726857123073,2.96794072,2540.7,2540.6,0.39358]
[1726857123377,0.39357,2540.7,2540.5,3.60139]
[1726857123571,8.59714831,2540.9,2540.5,3.2078]
[1726857123572,7.61327831,2540.9,2540.5,3.2078]
[1726857123768,3.08797831,2540.8,2540.6,0.39357]
[1726857123968,0.39357,2540.7,2540.6,0.39357]
[1726857124770,0.39357,2540.7,2540.5,3.60139]
[1726857125371,0.39357,2540.7,2540.5,3.2078]
[1726857125670,0.39357,2540.7,2540.5,3.60139]
[1726857125860,0.39357,2540.7,2540.5,3.2078]
[1726857126060,0.39357,2540.7,2540.6,0.39358]
[1726857126462,3.08797831,2540.8,2540.5,3.2078]
[1726857126774,0.39358,2540.7,2540.6,0.39358]
[1726857126979,0.39358,2540.7,2540.5,3.2078]
[1726857126980,3.08797831,2540.8,2540.5,3.2078]
[1726857127272,5.78392846,2540.6,2540.0,7.3388]
[1726857127461,0.39364,2540.3,2540.1,0.39365]
[1726857127666,2.06056986,2540.4,2540.1,0.39365]
[1726857127865,0.4293,2540.3,2540.1,0.39365]
[1726857128062,0.82294,2540.3,2540.1,0.39365]
[1726857128264,0.4293,2540.3,2540.2,3.46365]
[1726857128664,0.82293,2540.3,2540.2,3.07]
[1726857129168,0.39365,2540.2,2540.0,0.39367]
[1726857129369,0.4293,2540.3,2539.9,0.39368]
[1726857129370,0.8352,2540.1,2539.9,0.39368]
[1726857129569,0.39371,2539.8,2539.7,3.2078]
[1726857129769,0.39375,2539.5,2539.4,3.892]
[1726857129971,0.39377,2539.4,2539.3,4.131]
[1726857130176,0.4537,2539.4,2539.0,6.962]
[1726857130368,0.4293,2539.3,2539.0,6.962]
[1726857130574,0.8231,2539.3,2539.0,6.962]
[1726857130871,0.82309,2539.3,2539.1,0.3938]
[1726857131376,0.82309,2539.3,2539.2,3.07]
[1726857131777,0.4293,2539.3,2539.2,3.07]
[1726857132080,0.82308,2539.3,2539.2,3.07]
[1726857132374,0.4293,2539.3,2539.2,3.07]
[1726857132579,0.82308,2539.3,2539.2,3.07]
[1726857133078,0.82308,2539.3,2539.2,3.4638]
[1726857133767,3.2078,2539.6,2539.3,0.98447]
[1726857133970,0.4227,2539.9,2539.8,0.39371]
[1726857134880,0.4382,2540.3,2540.1,0.39365]
[1726857135073,0.8565,2540.2,2540.1,0.39365]
[1726857135379,1.25015,2540.2,2540.1,3.07]
[1726857135772,0.8565,2540.2,2540.1,3.46366]
[1726857136377,3.2078,2540.5,2540.4,0.39361]
[1726857136571,4.0609,2540.8,2540.6,0.39357]
[1726857136771,4.45446,2540.8,2540.7,3.07]
[1726857137874,1.24666,2540.8,2540.7,3.07]
[1726857139382,1.24666,2540.8,2540.7,3.46357]
[1726857139681,1.24666,2540.8,2540.7,3.07]
[1726857139890,1.24666,2540.8,2540.7,3.46357]
[1726857139891,0.8531,2540.8,2540.7,3.46357]
[1726857142181,0.39365,2540.2,2540.1,0.39365]
[1726857142378,0.39365,2540.2,2539.6,3.2078]
[1726857142379,0.3937,2539.9,2539.8,0.3937]
[1726857142583,0.39371,2539.8,2539.7,0.39371]
[1726857142786,2.05110186,2539.8,2539.4,3.07]
[1726857143082,2.05127877,2539.5,2539.3,3.88]
[1726857143282,0.39377,2539.4,2539.3,3.88]
[1726857143479,2.05127877,2539.5,2539.3,3.88]
[1726857143679,2.05127877,2539.5,2539.3,3.46378]
[1726857143874,2.05127877,2539.5,2539.3,0.39378]
[1726857144080,2.05127877,2539.5,2539.4,0.39377]
[1726857144488,2.05127877,2539.5,2539.3,0.39378]
[1726857145480,2.83491877,2539.6,2539.3,0.39378]
[1726857145676,2.83491877,2539.6,2539.2,3.2078]
[1726857145884,2.83491877,2539.6,2538.3,1.9697]
[1726857145885,19.613,2538.1,2537.5,0.394]
[1726857146079,5.25896092,2538.6,2537.7,3.6018]
[1726857146280,2.04903273,2538.9,2538.3,3.2078]
[1726857146487,3.07674138,2539.0,2538.3,3.2078]
[1726857146681,3.07674138,2539.0,2538.3,7.0878]
[1726857146883,3.07674138,2539.0,2538.6,3.2078]
[1726857147190,3.07674138,2539.0,2538.7,0.39388]
[1726857147386,3.07674138,2539.0,2538.8,0.39386]
[1726857147583,3.07674138,2539.0,2538.9,0.39385]
[1726857147783,3.6129,2539.2,2538.9,3.881]
[1726857147984,2.04903273,2539.6,2539.1,0.39381]
[1726857148287,2.44277273,2539.6,2539.1,0.39381]
[1726857148488,3.2078,2539.5,2539.0,4.27483]
[1726857148988,3.2078,2539.5,2539.1,0.39381]
[1726857149694,3.2078,2539.5,2539.0,4.27483]
[1726857149990,3.2078,2539.5,2539.0,4.27482]
[1726857150184,3.2078,2539.5,2539.1,0.3981]
[1726857151688,3.2078,2539.2,2539.1,0.3981]
[1726857153795,3.2078,2539.6,2539.4,0.39376]
[1726857153985,0.80358,2540.0,2539.7,0.39371]
[1726857153986,0.4099,2540.0,2539.7,0.39371]
[1726857154389,0.4099,2540.0,2539.6,4.27473]
[1726857154591,0.4099,2540.0,2539.7,0.39371]
[1726857155586,0.4099,2540.0,2539.7,4.27471]
[1726857156892,0.4099,2540.0,2539.8,0.42]
[1726857157988,0.4099,2540.0,2539.8,0.8137]
[1726857158886,0.4099,2540.0,2539.8,0.42]
[1726857161700,2.45893273,2540.0,2539.8,0.42]
[1726857162796,2.45893273,2540.0,2539.8,0.8137]
[1726857163101,2.45893273,2540.0,2539.8,0.42]
[1726857163400,2.85261273,2540.0,2539.8,0.42]
[1726857163599,2.04903273,2539.9,2539.8,0.42]
[1726857165301,0.4099,2540.0,2539.8,0.81371]
[1726857165504,0.80358,2540.0,2539.8,0.42]
[1726857165901,0.4099,2540.0,2539.8,0.81371]
[1726857166103,0.80358,2540.0,2539.8,0.42]
[1726857166291,0.39369,2539.9,2539.8,0.42]
[1726857166496,0.80358,2540.0,2539.8,0.42]
[1726857167000,0.39369,2539.9,2539.8,0.42]
[1726857167299,0.4099,2540.0,2539.8,0.81371]
[1726857167906,0.80358,2540.0,2539.8,0.81371]
[1726857168501,0.80358,2540.0,2539.8,0.42]
[1726857168802,0.80358,2540.0,2539.8,0.8137]
[1726857169298,0.4099,2540.0,2539.9,0.39369]
[1726857169807,0.4099,2540.0,2539.8,0.42]
[1726857169808,0.80358,2540.0,2539.8,0.8137]
[1726857170311,0.4099,2540.0,2539.9,0.39369]
[1726857170493,0.4099,2540.0,2539.9,3.46369]
[1726857171105,0.4099,2540.0,2539.9,0.39369]
[1726857171903,0.80358,2540.0,2539.8,0.8137]
[1726857172102,0.80358,2540.0,2539.8,0.3937]
[1726857172302,2.45893273,2540.0,2539.9,0.39369]
[1726857172704,0.80358,2540.0,2539.8,0.3937]
[1726857173000,0.80358,2540.0,2539.9,0.39369]
[1726857173196,0.4099,2540.0,2539.9,0.39369]
[1726857173509,0.4099,2540.0,2539.9,4.33049]
[1726857174404,0.4099,2540.0,2539.9,0.39369]
[1726857174600,0.4099,2540.0,2539.9,4.33049]
[1726857175509,0.4099,2540.0,2539.9,8.20249]
[1726857176603,0.4099,2540.0,2539.9,0.39369]
[1726857179314,0.3937,2539.9,2539.8,0.39371]
[1726857179514,2.05788221,2539.9,2539.8,0.39371]
[1726857179813,2.45157221,2539.9,2539.8,0.39371]
[1726857180012,2.05788221,2539.9,2539.8,0.39371]
[1726857180211,2.46778221,2540.0,2539.9,0.39369]
[1726857180513,2.46778221,2540.0,2539.7,4.85631]
[1726857180514,0.4099,2540.0,2539.7,3.872]
[1726857180818,0.4099,2540.0,2539.9,0.39369]
[1726857181116,0.39371,2539.8,2539.7,4.26571]
[1726857181413,0.98424,2539.9,2539.7,3.47828]
[1726857181714,0.39371,2539.8,2539.7,3.872]
[1726857182014,3.48343997,2540.0,2539.7,3.47828]
[1726857182310,3.87712997,2540.0,2539.9,0.39369]
[1726857182616,0.4099,2540.0,2539.9,0.39369]
[1726857182915,4.74038,2540.0,2539.9,0.39369]
[1726857183113,7.81391997,2540.0,2539.9,0.39369]
[1726857183714,7.42023997,2540.0,2539.9,0.39369]
[1726857183913,3.87711997,2540.0,2539.9,0.39369]
[1726857184212,0.3937,2539.9,2539.8,0.39369]
[1726857184609,3.87712997,2540.0,2539.9,0.39369]
[1726857185519,0.98424,2539.9,2539.6,0.4211]
[1726857185718,0.39371,2539.8,2539.7,0.39371]
[1726857186218,0.39372,2539.7,2539.6,0.39373]
[1726857186402,0.39374,2539.6,2539.5,0.39374]
[1726857186606,3.6329,2539.6,2539.3,3.42950001]
[1726857186815,0.3883,2539.5,2539.4,0.39377]
[1726857188210,2.44852201,2539.5,2539.4,0.39377]
[1726857189329,0.3883,2539.5,2539.4,0.39377]
[1726857189518,2.44852201,2539.5,2539.4,0.39377]
[1726857189719,0.3883,2539.5,2539.4,3.46377]
[1726857190219,0.3883,2539.5,2539.4,0.39377]
[1726857190621,0.3883,2539.5,2539.3,0.78078]
[1726857190815,2.44852201,2539.5,2539.4,0.39377]
[1726857191121,2.44852201,2539.5,2538.8,3.04250001]
[1726857191122,0.98447,2539.3,2538.8,3.04250001]
[1726857191311,2.06138365,2539.0,2538.9,0.39384]
[1726857191514,2.06138365,2539.0,2538.9,0.39385]
[1726857192117,0.39383,2539.0,2538.9,0.39385]
[1726857192322,2.57672957,2539.1,2538.6,7.4747]
[1726857192616,0.39384,2539.0,2538.9,0.39385]
[1726857192814,2.45605825,2539.0,2538.9,0.39385]
[1726857193014,2.06221825,2539.0,2538.9,0.39385]
[1726857193522,2.45604825,2539.0,2538.9,0.39385]
[1726857194116,2.06221825,2539.0,2538.9,0.39385]
[1726857194322,2.87134825,2539.0,2538.9,0.39385]
[1726857194525,3.38585957,2539.0,2538.9,0.39385]
[1726857194822,2.99202957,2539.0,2538.9,0.39385]
[1726857195022,3.38585957,2539.0,2538.9,0.39385]
[1726857196113,2.99202957,2539.0,2538.9,0.39385]
[1726857196317,3.38585957,2539.0,2538.9,0.39385]
[1726857196721,2.99202957,2539.0,2538.9,0.39385]
[1726857197317,2.57672957,2539.0,2538.9,8.38687]
[1726857197517,2.06102529,2539.1,2539.0,1.37842]
[1726857197719,2.06102529,2539.2,2539.1,0.39382]
[1726857197923,2.57672957,2539.3,2539.2,0.3938]
[1726857197924,2.97051957,2539.3,2539.2,0.3938]
[1726857198118,2.57672957,2539.3,2539.2,0.3938]
[1726857198623,2.57672957,2539.3,2539.1,3.07]
[1726857198834,2.06090748,2539.2,2539.1,6.67162]
[1726857199125,2.06090748,2539.3,2539.2,0.3938]
[1726857199823,0.8178,2539.4,2539.3,0.39378]
[1726857200222,3.39452957,2539.4,2539.3,0.39378]
[1726857200726,0.8178,2539.4,2539.3,0.39378]
[1726857204823,2.06088719,2539.8,2539.7,0.39372]
[1726857205024,3.35438719,2540.0,2539.7,3.07]
[1726857205326,3.35438719,2540.0,2539.9,0.39369]
[1726857205924,0.424,2540.0,2539.9,4.44793]
[1726857206124,6.28133997,2540.5,2540.2,0.39365]
[1726857206125,2.06088719,2540.3,2540.2,0.39365]
[1726857206426,1.77372,2540.4,2540.3,0.39363]
[1726857206917,1.3801,2540.4,2540.3,0.39363]
[1726857207121,3.83386182,2540.4,2540.3,0.39363]
[1726857207322,5.3169,2540.4,2539.9,3.863]
[1726857207630,2.06017504,2540.2,2540.1,0.39365]
[1726857207820,2.45381504,2540.3,2540.1,0.39365]
[1726857208026,2.45381504,2540.3,2540.2,0.39365]
[1726857208720,0.39364,2540.3,2540.2,0.39365]
[1726857209325,2.45381504,2540.3,2540.2,0.39365]
[1726857209739,0.39364,2540.3,2540.2,0.39365]
[1726857211131,1.3801,2540.4,2540.3,0.39363]
[1726857212335,0.39364,2540.3,2540.2,0.39363]
[1726857213131,1.77373,2540.4,2540.3,0.39363]
[1726857216731,0.39365,2540.3,2540.2,0.39364]
[1726857220131,0.39366,2540.2,2540.1,0.39365]
[1726857220641,0.39371,2539.9,2539.8,0.3937]
[1726857220840,0.39371,2539.9,2539.7,3.04250001]
[1726857220841,0.39369,2540.0,2539.9,0.39368]
[1726857221339,1.37793,2539.9,2539.8,0.4615]
[1726857221641,1.27879,2539.9,2539.8,0.85521]
[1726857222133,1.27879,2539.9,2539.8,0.39371]
[1726857223340,0.8851,2539.9,2539.8,0.39371]
[1726857225434,1.27879,2539.9,2539.8,0.39371]
[1726857229536,0.8851,2539.9,2539.8,0.39371]
[1726857229733,1.27879,2539.9,2539.8,0.39371]
[1726857230628,0.39367,2540.1,2540.0,0.39366]
[1726857230838,2.05870983,2540.3,2540.0,3.07]
[1726857231034,2.05870983,2540.3,2540.2,0.39364]
[1726857231035,0.39365,2540.3,2540.2,0.39364]
[1726857231432,2.05870983,2540.5,2540.4,0.39361]
[1726857231636,0.3936,2540.5,2540.4,0.3936]
[1726857231842,5.66009983,2540.6,2540.5,0.3936]
[1726857232141,3.60138,2540.6,2540.5,0.3936]
[1726857232739,3.60139,2540.6,2540.4,0.39361]
[1726857232933,3.60139,2540.6,2540.5,0.3936]
[1726857233133,5.65938437,2540.6,2540.5,0.3936]
[1726857234350,3.60139,2540.6,2540.5,0.3936]
[1726857234543,4.05929,2540.6,2540.5,0.3936]
[1726857235045,0.3936,2540.5,2540.4,0.3936]
[1726857235248,2.05781767,2540.5,2540.3,0.451]
[1726857235440,2.05781767,2540.5,2540.4,0.39361]
[1726857235746,2.90930767,2540.6,2540.5,0.3936]
[1726857236039,2.51571767,2540.6,2540.3,0.451]
[1726857236439,0.3936,2540.5,2540.4,0.3936]
[1726857237245,2.90930767,2540.6,2540.5,0.3936]
[1726857239847,0.85149,2540.6,2540.5,0.3936]
[1726857240244,0.39361,2540.4,2540.3,0.84462]
[1726857240546,0.39361,2540.4,2540.3,0.451]
[1726857240847,0.84341,2540.4,2540.3,0.84463]
[1726857243043,0.84341,2540.4,2540.3,0.451]
[1726857243247,0.84341,2540.4,2540.3,0.84463]
[1726857243837,0.84341,2540.4,2539.9,3.48760001]
[1726857243838,0.39367,2540.1,2539.9,3.48760001]
[1726857244038,0.39367,2540.1,2540.0,0.39366]
[1726857245339,7.0068,2540.1,2539.7,3.2078]
[1726857245541,3.46371,2539.8,2539.7,3.2078]
[1726857245741,5.52152767,2539.8,2539.7,3.2078]
[1726857245948,5.98622767,2539.8,2539.7,3.2078]
[1726857246453,3.92841,2539.8,2539.7,3.2078]
[1726857246951,0.39372,2539.7,2539.6,0.4555]
[1726857247344,8.80031767,2539.8,2539.7,0.39372]